bitfinex-derivatives/quotes_SOLF0:USTF0_20250712
["timestamp","ask_amount","ask_price","bid_price","bid_amount"]
[1752323078363,6.214,160.87,160.85,3.52]
[1752323078563,6.214,160.87,160.81,6.43003004]
[1752323078762,6.214,160.87,160.86,3.52]
[1752323079066,2.3793894,160.89,160.81,6.43003004]
[1752323079260,181.78,160.93,160.82,3.52]
[1752323079460,2.3793894,160.87,160.83,3.52]
[1752323079660,5.08553892,160.91,160.81,9.95003004]
[1752323079963,18.63,160.89,160.81,9.95003004]
[1752323080156,18.63,160.89,160.81,6.43003004]
[1752323080363,18.63,160.87,160.72,10.46337153]
[1752323080666,23.71553892,160.82,160.67,3.52]
[1752323080968,181.88,160.81,160.72,3.52]
[1752323081163,6.2191,160.74,160.72,3.52]
[1752323081370,181.88,160.81,160.72,3.52]
[1752323081770,181.88,160.81,160.73,3.52]
[1752323081971,5.08553892,160.84,160.67,3.52]
[1752323082160,547.04306065,160.88,160.67,3.52]
[1752323082161,181.9,160.87,160.7,3.52]
[1752323082364,181.9,160.87,160.7,6.94337153]
[1752323082570,181.9,160.87,160.78,3.52]
[1752323082967,181.9,160.87,160.78,9.7374]
[1752323083270,181.9,160.87,160.78,3.52]
[1752323084276,181.9,160.87,160.78,9.7374]
[1752323084765,181.9,160.87,160.75,3.4]
[1752323084972,186.98553892,160.87,160.75,3.4]
[1752323085272,6.2174,160.79,160.75,3.4]
[1752323085473,6.2174,160.79,160.76,3.4]
[1752323086069,6.2175,160.78,160.76,3.4]
[1752323086270,181.9,160.87,160.76,3.4]
[1752323086474,183.90630997,160.87,160.76,3.4]
[1752323086670,183.90411102,160.87,160.67,3.4]
[1752323087066,6.2171,160.8,160.76,6.2182]
[1752323087376,536.82,160.88,160.68,3.4]
[1752323087671,184.36301913,160.87,160.68,3.4]
[1752323088179,536.82,160.88,160.78,3.4]
[1752323088374,182.34,160.87,160.78,3.4]
[1752323088769,182.34,160.87,160.79,6.2169]
[1752323088970,182.34,160.87,160.8,3.4]
[1752323091579,6.2163,160.81,160.8,3.4]
[1752323096379,182.34,160.87,160.8,3.4]
[1752323096579,536.82,160.88,160.8,3.4]
[1752323097585,536.82,160.88,160.8,9.6166]
[1752323097780,536.82,160.88,160.81,3.4]
[1752323098678,536.82,160.88,160.81,6.2163]
[1752323098985,6.2155,160.83,160.82,3.4]
[1752323099281,182.18,160.85,160.72,3.4]
[1752323099783,182.18,160.85,160.76,3.4]
[1752323101184,6.2173,160.79,160.76,3.4]
[1752323101684,6.2178,160.77,160.76,3.4]
[1752323102283,200.81,160.85,160.76,3.4]
[1752323102787,6.2171,160.79,160.76,9.6182]
[1752323102982,6.2171,160.79,160.77,3.4]
[1752323103383,6.2167,160.8,160.77,3.4]
[1752323103583,200.81,160.85,160.77,3.4]
[1752323103987,6.217,160.8,160.77,3.4]
[1752323104491,200.81,160.85,160.77,3.4]
[1752323104682,1.0824598,160.84,160.77,3.4]
[1752323106086,6.2173,160.79,160.77,3.4]
[1752323106478,1.0824598,160.84,160.77,3.4]
[1752323106688,6.2175,160.78,160.77,3.4]
[1752323110886,1.0824598,160.84,160.66,6.94337153]
[1752323111092,1.0824598,160.84,160.75,3.4]
[1752323111885,6.2182,160.76,160.75,3.4]
[1752323116393,1.0824598,160.84,160.75,3.4]
[1752323116989,6.218,160.77,160.75,3.4]
[1752323117591,1.0824598,160.84,160.67,3.54]
[1752323118393,6.2177,160.78,160.76,3.54]
[1752323118792,6.2172,160.79,160.76,9.7582]
[1752323118996,6.2172,160.79,160.77,3.54]
[1752323120903,6.2175,160.78,160.77,3.54]
[1752323127508,6.2172,160.79,160.77,3.54]
[1752323128710,6.2169,160.8,160.78,3.54]
[1752323129010,0.04589406,160.8,160.78,3.54]
[1752323129206,0.04589406,160.8,160.79,9.7571]
[1752323132204,5.07754853,160.89,160.81,6.216]
[1752323132404,186.85754853,160.89,160.82,3.54]
[1752323132615,537.90220733,160.88,160.82,3.54]
[1752323132814,5.07754853,160.87,160.82,3.54]
[1752323133208,6.2155,160.83,160.82,3.54]
[1752323134015,6.2153,160.84,160.82,3.54]
[1752323134216,537.90220733,160.88,160.82,3.54]
[1752323134509,537.90220733,160.88,160.83,6.2154]
[1752323134716,536.82,160.88,160.84,3.54]
[1752323135416,536.82,160.88,160.84,3.58279426]
[1752323135606,5.07754853,160.91,160.84,3.58279426]
[1752323135811,5.07754853,160.93,160.84,3.58279426]
[1752323136020,186.83754853,160.93,160.84,3.58279426]
[1752323136218,6.2133,160.89,160.86,6.2141]
[1752323136518,6.2133,160.89,160.87,3.54]
[1752323136704,181.76,160.93,160.87,3.54]
[1752323138113,6.2135,160.89,160.87,3.54]
[1752323140415,182.80183726,160.94,160.88,3.54]
[1752323141009,6.2133,160.89,160.88,3.54]
[1752323141420,3.49,160.89,160.76,6.94337153]
[1752323141713,3.49,160.89,160.75,549.5971]
[1752323141714,3.49,160.88,160.75,549.5971]
[1752323143020,3.49,160.92,160.75,549.5971]
[1752323143217,3.49,160.9,160.75,556.54047153]
[1752323143413,3.49,160.9,160.76,3.54]
[1752323144118,6.2149,160.85,160.82,6.2156]
[1752323144318,6.2149,160.85,160.83,3.54]
[1752323144815,181.72,160.91,160.76,3.62]
[1752323144816,3.52,160.9,160.76,3.62]
[1752323145018,3.52,160.9,160.77,3.62]
[1752323145718,6.2141,160.87,160.84,6.2148]
[1752323145918,6.2141,160.87,160.85,3.62]
[1752323147025,3.52,160.9,160.86,3.62]
[1752323147530,181.72,160.91,160.86,3.62]
[1752323147824,181.72,160.91,160.85,3.62]
[1752323147825,3.52,160.88,160.85,3.62]
[1752323148017,9.7344,160.87,160.86,3.62]
[1752323148416,6.2144,160.87,160.86,3.62]
[1752323149829,9.7344,160.87,160.86,3.62]
[1752323150025,6.2144,160.87,160.86,3.62]
[1752323151426,6.2139,160.88,160.86,3.62]
[1752323151828,6.2136,160.88,160.86,3.62]
[1752323152732,6.214,160.87,160.86,3.62]
[1752323156827,9.734,160.87,160.86,3.62]
[1752323158430,6.214,160.87,160.86,3.62]
[1752323158933,6.2138,160.88,160.86,3.62]
[1752323159329,3.52,160.9,160.86,3.62]
[1752323159629,6.214,160.87,160.75,556.54047153]
[1752323159831,3.52,160.93,160.82,6.2158]
[1752323160028,3.52,160.88,160.83,3.62]
[1752323160228,3.52,160.87,160.83,3.62]
[1752323160530,6.215,160.85,160.83,3.62]
[1752323160929,3.52,160.87,160.83,6.2155]
[1752323161234,6.2144,160.86,160.84,3.62]
[1752323161624,5.09709187,160.93,160.86,3.62]
[1752323161824,3.52,160.92,160.86,3.62]
[1752323162334,6.2139,160.88,160.86,3.62]
[1752323162535,3.52,160.9,160.86,3.62]
[1752323162729,6.2134,160.89,160.86,6.2141]
[1752323162934,3.52,160.92,160.87,3.62]
[1752323163133,3.52,160.91,160.79,3.62]
[1752323163429,3.52,160.9,160.79,3.62]
[1752323163835,6.2135,160.89,160.86,6.2142]
[1752323164034,6.2135,160.89,160.87,3.62]
[1752323164331,6.2126,160.91,160.88,6.2136]
[1752323164542,3.52,160.92,160.89,3.62]
[1752323165032,6.2128,160.91,160.89,3.62]
[1752323165233,181.64,160.95,160.89,3.62]
[1752323165437,3.52,160.93,160.89,3.62]
[1752323165935,3.52,160.94,160.89,3.62]
[1752323166136,3.52,160.93,160.9,6.2128]
[1752323166337,3.52,160.93,160.91,3.62]
[1752323166533,3.52,160.93,160.92,3.62]
[1752323167033,9.7317,160.93,160.92,3.62]
[1752323167233,181.64,160.95,160.93,3.62]
[1752323167538,6.2114,160.94,160.93,3.62]
[1752323168137,9.7314,160.94,160.93,3.62]
[1752323169438,9.7317,160.93,160.92,3.66070296]
[1752323169640,9.7317,160.93,160.92,0.04070296]
[1752323170636,9.7317,160.93,160.92,3.66070296]
[1752323172236,3.56782578,160.96,160.92,3.66070296]
[1752323172441,3.52,160.95,160.92,3.66070296]
[1752323172637,3.52,160.94,160.93,3.62]
[1752323172842,9.7313,160.94,160.93,3.62]
[1752323175242,0.04782578,160.96,160.93,3.65]
[1752323175948,3.55,161.01,160.96,3.65]
[1752323176243,3.55,161.01,160.99,3.65]
[1752323176541,3.55,161.02,160.99,3.65]
[1752323176743,3.55,161.02,160.98,6.2097]
[1752323176948,6.2086,161.01,161.0,3.65]
[1752323177844,3.55,161.02,161.0,3.65]
[1752323178046,3.55,161.03,161.0,3.65]
[1752323178245,3.55,161.04,161.0,9.859]
[1752323178446,6.2085,161.02,160.99,3.65]
[1752323178646,3.55,161.04,160.99,3.65]
[1752323179044,6.2084,161.02,160.99,9.8594]
[1752323179245,3.55,161.03,161.0,3.65]
[1752323180043,6.2085,161.02,161.0,3.65]
[1752323180645,6.2085,161.02,161.0,6.209]
[1752323180849,6.2085,161.02,161.01,3.65]
[1752323181849,6.208,161.03,161.01,3.65]
[1752323182448,181.56,161.05,161.01,3.65]
[1752323182648,3.55,161.07,161.01,3.65]
[1752323183044,3.55,161.1,161.01,3.65]
[1752323183354,3.55,161.12,161.01,3.65]
[1752323183551,3.55,161.12,161.05,6.2068]
[1752323183750,3.55,161.12,161.06,3.65]
[1752323184148,6.2054,161.1,161.06,6.2064]
[1752323184350,6.2054,161.1,161.07,3.68994356]
[1752323184545,6.2056,161.09,161.07,3.68994356]
[1752323184752,3.55,161.1,161.07,3.65]
[1752323185153,3.55,161.12,161.07,3.65]
[1752323185549,181.5,161.13,161.07,3.65]
[1752323185956,185.05,161.13,161.07,3.65]
[1752323186456,181.5,161.13,161.08,3.65]
[1752323186754,3.55,161.15,161.08,3.65]
[1752323187545,3.55,161.14,161.1,0.04106478]
[1752323187750,6.204,161.13,161.12,3.65]
[1752323191650,3.55,161.16,161.11,0.04328094]
[1752323191861,3.55,161.16,161.12,3.65]
[1752323192057,6.2038,161.14,161.12,3.65]
[1752323192359,3.55,161.15,161.12,3.65]
[1752323192560,6.2039,161.14,161.12,3.65]
[1752323192762,3.55,161.18,161.12,3.65]
[1752323193154,6.204,161.13,161.12,3.65]
[1752323195156,3.55,161.18,161.12,3.65]
[1752323195860,6.2035,161.15,161.12,3.65]
[1752323196465,3.55,161.17,161.12,3.65]
[1752323196762,3.55,161.16,161.12,3.65]
[1752323197559,6.2038,161.14,161.12,3.65]
[1752323198662,6.204,161.13,161.12,3.65]
[1752323198865,3.53,161.16,161.12,3.65]
[1752323199265,6.2033,161.15,161.13,3.65]
[1752323199660,3.53,161.18,161.13,9.8537]
[1752323199862,3.53,161.18,161.14,3.65]
[1752323200470,6.2027,161.17,161.14,6.24711551]
[1752323200666,3.53,161.18,161.15,3.65]
[1752323200874,181.38,161.19,161.15,3.65]
[1752323200875,3.53,161.17,161.15,3.65]
[1752323201071,6.2031,161.16,161.15,3.65]
[1752323201368,3.53,161.19,161.15,3.65]
[1752323201573,6.2024,161.18,161.15,3.65]
[1752323201774,3.53,161.21,161.15,3.65]
[1752323202472,6.2023,161.18,161.16,3.65]
[1752323202670,3.53,161.19,161.16,3.65]
[1752323202871,9.7318,161.19,161.16,9.8528]
[1752323203068,9.7318,161.19,161.17,3.65]
[1752323203971,3.53,161.2,161.17,3.65]
[1752323204176,3.53,161.25,161.17,3.65]
[1752323204580,3.53,161.25,161.19,0.04445929]
[1752323204776,3.53,161.25,161.2,3.52]
[1752323205075,6.2013,161.2,161.19,0.04445929]
[1752323205277,6.2013,161.2,161.19,3.56445929]
[1752323205477,181.3,161.26,161.19,3.56445929]
[1752323205677,3.53,161.22,161.19,3.56445929]
[1752323206176,3.53,161.24,161.19,3.56445929]
[1752323206379,3.53,161.23,161.19,3.56445929]
[1752323206880,6.2008,161.22,161.2,3.52]
[1752323208085,6.2009,161.21,161.2,3.52]
[1752323209171,6.2007,161.22,161.2,3.52]
[1752323209772,6.2009,161.21,161.2,3.52]
[1752323209980,9.7309,161.21,161.2,3.52]
[1752323210183,6.2006,161.22,161.2,3.52]
[1752323210383,181.3,161.26,161.2,3.52]
[1752323210681,3.53,161.25,161.2,3.52]
[1752323211078,6.2013,161.21,161.19,0.04445929]
[1752323211377,3.53,161.22,161.19,0.04445929]
[1752323211584,9.7313,161.2,161.19,3.56445929]
[1752323211784,3.53,161.2,161.06,3.52]
[1752323212181,3.53,161.25,161.16,3.52]
[1752323212680,6.2025,161.17,161.16,3.52]
[1752323212879,3.53,161.18,161.07,3.52]
[1752323213883,3.53,161.19,161.11,3.52]
[1752323214289,6.2044,161.12,161.11,3.52]
[1752323215480,9.7344,161.12,161.11,3.52]
[1752323217082,6.2049,161.11,161.09,3.52]
[1752323217282,9.7349,161.11,161.1,3.52]
[1752323217781,3.53,161.09,161.08,3.52]
[1752323218585,3.53,161.11,161.08,3.52]
[1752323219790,3.53,161.1,161.09,3.52]
[1752323220085,9.7351,161.11,160.97,717.2]
[1752323220284,9.7351,161.11,161.1,3.52]
[1752323220795,9.7352,161.1,161.08,3.52]
[1752323221395,3.53,161.09,161.08,3.52]
[1752323221598,3.53,161.16,160.98,3.52]
[1752323222092,9.7362,161.08,160.98,3.52]
[1752323222295,3.53,161.15,160.98,3.52]
[1752323222891,8.59580107,161.15,160.98,3.52]
[1752323223088,6.2052,161.1,161.07,6.2061]
[1752323223290,3.53,161.11,161.08,3.52]
[1752323224096,9.735,161.11,161.09,3.52]
[1752323224395,9.735,161.11,161.1,3.52]
[1752323225998,6.2052,161.1,161.08,3.52]
[1752323226208,5.06580107,161.17,161.07,6.2062]
[1752323226209,3.53,161.08,161.07,3.52]
[1752323226695,3.53,161.08,160.97,717.2]
[1752323226998,3.53,161.07,161.06,3.52]
[1752323227700,9.7363,161.07,161.06,3.52]
[1752323228399,6.2067,161.06,161.03,6.2077]
[1752323228596,3.53,161.05,161.04,3.52]
[1752323228892,3.53,161.05,161.04,9.7275]
[1752323229092,6.2065,161.07,161.04,6.2075]
[1752323229398,3.53,161.06,161.05,3.52]
[1752323229801,9.7367,161.06,161.05,3.52]
[1752323229999,3.53,161.06,161.05,3.52]
[1752323230195,3.570521,161.08,161.05,3.52]
[1752323230405,9.776621,161.08,161.05,6.2071]
[1752323230599,9.776621,161.08,161.07,3.52]
[1752323231301,3.570521,161.08,161.07,3.52]
[1752323231504,0.040521,161.08,161.07,3.52]
[1752323233800,0.040521,161.08,161.04,3.52]
[1752323234100,3.53,161.07,161.04,3.52]
[1752323234303,0.040521,161.08,161.04,3.52]
[1752323234700,3.35,161.07,161.04,3.52]
[1752323235102,0.040521,161.08,161.04,3.52]
[1752323235407,9.596521,161.08,161.05,6.2069]
[1752323235602,9.596521,161.08,161.07,3.57]
[1752323237503,9.5568,161.06,161.03,0.04120188]
[1752323237704,9.5568,161.06,161.04,3.57]
[1752323238603,3.35,161.05,161.04,3.57]
[1752323239006,9.5571,161.05,161.04,3.57]
[1752323239702,6.2075,161.04,161.03,0.04120188]
[1752323239904,9.5575,161.04,161.03,3.61120188]
[1752323240904,3.35,161.04,161.03,3.61120188]
[1752323241207,9.5573,161.05,161.04,3.57]
[1752323242701,9.5575,161.04,161.03,0.04120188]
[1752323242900,9.5575,161.04,161.03,3.61120188]
[1752323243810,9.5575,161.04,161.03,0.04120188]
[1752323245614,6.2073,161.05,161.03,3.61120188]
[1752323245914,9.5573,161.05,161.04,3.57]
[1752323246512,3.35,161.05,161.04,3.57]
[1752323246716,6.2068,161.06,161.03,0.04120188]
[1752323246914,9.5568,161.06,161.05,3.57]
[1752323247214,3.35,161.04,161.03,3.61120188]
[1752323247512,9.5571,161.05,161.04,3.57]
[1752323247710,3.35,161.07,161.03,0.04120188]
[1752323247914,3.35,161.04,161.01,3.57]
[1752323248214,3.35,161.04,160.92,193.7242]
[1752323248215,3.35,161.04,161.03,3.57]
[1752323249013,3.35,161.06,161.03,3.57]
[1752323249214,3.39367646,161.05,161.04,3.57]
[1752323249414,3.39367646,161.05,161.01,6.2085]
[1752323249610,3.35,161.1,161.02,3.57]
[1752323249812,6.2073,161.05,161.02,9.7782]
[1752323250010,9.60112475,161.05,161.03,3.57]
[1752323250209,9.60112475,161.05,161.04,3.57]
[1752323251114,6.25112475,161.05,161.04,3.57]
[1752323251315,0.04382475,161.05,161.04,3.57]
[1752323253011,9.60092475,161.05,161.04,3.57]
[1752323254723,6.25092475,161.05,161.04,3.57]
[1752323254922,9.60092475,161.05,161.04,3.57]
[1752323257417,6.2079,161.03,161.02,3.57]
[1752323258126,9.5579,161.03,161.02,3.57]
[1752323260124,6.2089,161.01,161.0,3.57]
[1752323260322,9.5589,161.01,161.0,3.57]
[1752323261721,9.5589,161.01,160.98,3.57]
[1752323261722,3.35,161.01,160.98,3.57]
[1752323262228,6.2094,161.0,160.99,3.57]
[1752323262430,9.5594,161.0,160.99,3.57]
[1752323264226,3.35,161.0,160.99,3.57]
[1752323264430,9.60560202,161.01,161.0,3.57]
[1752323265833,0.04680202,161.01,161.0,3.57]
[1752323266636,6.25540202,161.01,161.0,3.57]
[1752323267335,0.04680202,161.01,161.0,3.57]
[1752323269926,3.55680202,161.01,161.0,3.57]
[1752323270733,0.04680202,161.01,161.0,3.57]
[1752323271734,3.55680202,161.01,161.0,3.57]
[1752323272038,0.04680202,161.01,161.0,3.57]
[1752323273431,6.25540202,161.01,161.0,3.57]
[1752323273631,9.76540202,161.01,161.0,3.57]
[1752323276341,9.76540202,161.01,160.99,3.52]
[1752323276540,3.51,161.0,160.99,3.52]
[1752323277141,3.51,161.0,160.96,6.2104]
[1752323277339,3.51,161.0,160.97,3.52]
[1752323277839,3.55568259,161.0,160.97,3.52]
[1752323278233,6.25498259,161.0,160.97,3.52]
[1752323278541,3.51,160.99,160.98,3.52]
[1752323278743,9.76498259,161.0,160.98,3.52]
[1752323280242,3.55568259,161.0,160.98,9.7297]
[1752323280439,0.04568259,161.0,160.99,3.52]
[1752323281240,0.04568259,161.0,160.99,9.7294]
[1752323281645,0.04568259,161.0,160.99,3.52]
[1752323282545,0.04568259,161.0,160.99,9.7294]
[1752323284550,3.51,161.06,161.03,3.52]
[1752323284745,3.51,161.08,161.03,3.52]
[1752323284950,3.51,161.06,161.04,3.52]
[1752323285345,3.51,161.05,161.04,3.52]
[1752323286153,9.7174,161.05,161.04,3.52]
[1752323287553,9.7174,161.05,161.02,6.2081]
[1752323287554,3.51,161.03,161.02,3.52]
[1752323287852,3.51,161.08,161.02,3.52]
[1752323288543,5.1303741,161.12,161.02,3.52]
[1752323288851,3.51,161.09,161.02,3.52]
[1752323289040,6.206,161.08,161.05,6.2069]
[1752323289241,6.206,161.08,161.06,3.52]
[1752323291653,9.716,161.08,161.05,6.2069]
[1752323291853,9.7164,161.07,161.06,3.52]
[1752323293254,6.2064,161.07,161.06,3.52]
[1752323293454,536.28,161.13,161.06,3.52]
[1752323293654,3.51,161.11,160.99,3.52]
[1752323294051,6.2069,161.06,160.99,3.52]
[1752323294449,6.2072,161.05,161.02,6.208]
[1752323294656,3.51,161.07,160.97,3.52]
[1752323295049,6.2074,161.05,161.02,6.208]
[1752323295250,6.2074,161.05,161.03,3.54]
[1752323295448,3.39,161.05,161.03,3.54]
[1752323295647,3.39,161.1,161.02,3.54]
[1752323296957,18.63,161.1,161.01,3.54]
[1752323297156,5.1303741,161.08,160.93,6.94337153]
[1752323297457,6.209,161.0,160.99,3.54]
[1752323297668,3.39,161.07,160.99,3.54]
[1752323297853,3.39,161.06,160.99,3.54]
[1752323298158,3.39,161.06,160.95,3.54]
[1752323298660,6.2084,161.02,160.99,6.2093]
[1752323298959,9.5984,161.02,161.0,3.54]
[1752323299157,9.5984,161.02,160.99,6.2094]
[1752323299358,9.5984,161.02,161.0,3.54]
[1752323299859,9.5984,161.02,160.98,6.2095]
[1752323300047,9.5984,161.02,161.01,3.54]
[1752323301754,6.2084,161.02,161.01,3.54]
[1752323302351,9.5984,161.02,161.01,3.54]
[1752323302958,6.2079,161.03,161.01,3.54]
[1752323304359,9.5976,161.04,161.01,3.54]
[1752323304757,6.2076,161.04,161.01,3.54]
[1752323306058,3.39,161.06,161.01,3.54]
[1752323306563,3.39,161.08,161.03,6.2079]
[1752323306861,5.1303741,161.11,161.04,3.54]
[1752323306862,3.39,161.09,161.04,3.54]
[1752323307262,6.2069,161.06,161.04,3.54]
[1752323307763,6.2071,161.05,161.04,3.54]
[1752323308157,9.5971,161.05,161.04,3.54]
[1752323308358,9.5978,161.04,161.03,3.54]
[1752323308863,6.2078,161.04,161.03,3.54]
[1752323309658,9.5978,161.04,161.03,3.54]
[1752323309865,9.5978,161.04,160.93,10.4150573]
[1752323309866,3.39,161.04,161.02,3.54]
[1752323310164,3.39,161.08,161.02,3.54]
[1752323310363,6.2081,161.03,161.02,3.54]
[1752323311659,6.2089,161.01,161.0,3.54]
[1752323311865,3.39,161.02,161.0,3.54]
[1752323312258,3.39,161.02,160.95,3.54]
[1752323313163,6.2092,161.0,160.98,3.54]
[1752323313867,3.39,161.04,160.93,3.54]
[1752323314164,3.39,161.04,160.94,3.54]
[1752323314370,6.2081,161.03,161.01,3.54]
[1752323319663,6.2082,161.02,161.01,3.54]
[1752323320564,9.598,161.03,161.01,3.54]
[1752323321366,6.208,161.03,161.01,3.54]
[1752323321665,9.598,161.03,161.01,3.54]
[1752323321967,6.208,161.03,161.01,3.54]
[1752323322767,6.2075,161.04,161.02,3.54]
[1752323323167,6.2079,161.03,161.02,3.54]
[1752323324768,9.5979,161.03,161.02,3.54]
[1752323325864,6.2084,161.02,160.99,6.2092]
[1752323326066,9.7884,161.02,161.0,3.65]
[1752323326366,6.2084,161.02,161.0,3.65]
[1752323326870,6.208,161.03,161.0,6.209]
[1752323327067,6.208,161.03,161.01,3.65]
[1752323327270,9.7876,161.04,161.01,9.8585]
[1752323327462,9.7876,161.04,161.02,3.65]
[1752323329660,6.2079,161.03,161.02,3.65]
[1752323330571,9.7879,161.03,161.02,3.65]
[1752323331372,6.2079,161.03,161.02,3.65]
[1752323331670,9.7879,161.03,161.02,3.65]
[1752323333971,3.58,161.06,160.95,3.65]
[1752323334374,3.58,161.01,160.98,3.65]
[1752323334578,5.1303741,161.07,160.98,3.65]
[1752323334771,3.58,161.02,160.98,3.65]
[1752323335076,6.2088,161.01,160.99,3.65]
[1752323336675,6.209,161.0,160.99,3.65]
[1752323337474,6.2088,161.01,160.99,3.65]
[1752323341080,3.58,161.01,160.99,3.65]
[1752323341484,6.2088,161.01,160.99,3.65]
[1752323343085,6.2088,161.01,161.0,3.65]
[1752323343785,3.58,161.06,161.0,9.8589]
[1752323344080,3.58,161.06,161.01,3.65]
[1752323344471,3.58,161.06,161.02,3.65]
[1752323344877,6.2072,161.05,161.02,9.8582]
[1752323345073,8.7103741,161.07,161.03,3.65]
[1752323345281,3.58,161.06,161.03,3.65]
[1752323345479,9.7869,161.06,161.04,3.65]
[1752323345782,3.58,161.05,161.04,3.65]
[1752323346177,6.2069,161.06,161.04,3.65]
[1752323346385,8.7103741,161.08,161.04,3.65]
[1752323346583,6.2063,161.07,161.05,3.65]
[1752323347579,3.58,161.09,161.06,3.65]
[1752323348183,9.7861,161.08,161.06,3.65]
[1752323348686,6.2061,161.08,161.06,3.65]
[1752323349884,9.7861,161.08,161.06,3.65]
[1752323350384,6.2057,161.09,161.06,9.8567]
[1752323350581,3.58,161.1,161.06,3.65]
[1752323350783,3.58,161.11,161.06,3.65]
[1752323350987,186.0703741,161.12,161.06,3.65]
[1752323350988,6.2056,161.09,161.07,3.65]
[1752323351280,3.58,161.11,161.07,3.65]
[1752323352086,3.58,161.11,161.08,3.65]
[1752323352580,3.58,161.11,161.06,3.65]
[1752323354282,6.206,161.08,161.06,3.65]
[1752323354585,3.58,161.11,161.06,3.65]
[1752323354976,6.2061,161.08,161.06,3.65]
[1752323355588,9.6761,161.08,161.06,3.65]
[1752323355783,6.2061,161.08,161.06,3.65]
[1752323356785,184.41,161.12,161.06,3.65]
[1752323356984,3.47,161.11,161.06,3.65]
[1752323357186,3.47,161.1,161.06,3.65]
[1752323357491,3.47,161.1,161.07,3.43]
[1752323357890,6.2057,161.09,161.07,3.43]
[1752323358486,6.206,161.08,161.07,3.43]
[1752323359892,3.47,161.13,161.07,3.43]
[1752323360190,3.47,161.14,161.07,3.43]
[1752323360587,6.2047,161.12,161.09,3.43]
[1752323361393,3.47,161.13,161.1,3.43]
[1752323361587,3.47,161.15,161.1,3.43]
[1752323361887,6.2038,161.14,161.1,3.43]
[1752323362083,6.2038,161.14,161.11,6.2048]
[1752323362390,536.3,161.18,161.12,3.43]
[1752323362579,3.47,161.16,161.12,3.43]
[1752323363886,6.2036,161.15,161.12,3.43]
[1752323364290,180.8,161.19,161.12,3.43]
[1752323364590,6.2037,161.14,161.12,3.43]
[1752323365191,6.2035,161.15,161.05,3.43]
[1752323365386,5.1303741,161.23,161.06,3.43]
[1752323365688,6.2025,161.18,161.15,6.203]
[1752323365888,6.2025,161.18,161.16,3.43]
[1752323366787,6.2025,161.18,161.17,3.43]
[1752323367285,6.2026,161.17,161.16,3.43]